bitfinex/quotes_BTCUSD_20250809
["timestamp","ask_amount","ask_price","bid_price","bid_amount"]
[1754710730100,1.3141387,116570.0,116560.0,0.0052514]
[1754710730243,1.33314722,116570.0,116560.0,0.0052514]
[1754710732951,0.99598499,116570.0,116560.0,0.0052514]
[1754710733089,1.3141387,116570.0,116560.0,0.0052514]
[1754710735666,1.1080587,116570.0,116560.0,0.0052514]
[1754710736484,0.78990499,116570.0,116560.0,0.0052514]
[1754710736704,0.78456499,116570.0,116560.0,0.32532511]
[1754710736920,0.77651781,116570.0,116560.0,0.32532511]
[1754710737322,0.64659781,116570.0,116560.0,0.0071714]
[1754710737529,0.77651781,116570.0,116560.0,0.32532511]
[1754710737734,0.77651781,116570.0,116560.0,0.0071714]
[1754710737939,0.77651781,116570.0,116560.0,0.32532511]
[1754710739160,0.77651781,116570.0,116560.0,0.35798982]
[1754710739384,0.77651781,116570.0,116560.0,0.32532511]
[1754710744455,0.77971781,116570.0,116560.0,0.32532511]
[1754710745454,0.77651781,116570.0,116560.0,0.32532511]
[1754710750010,0.77971781,116570.0,116560.0,0.32532511]
[1754710752130,0.78168781,116570.0,116560.0,0.32532511]
[1754710756873,0.78168781,116570.0,116560.0,0.0071714]
[1754710757065,0.78168781,116570.0,116560.0,0.32532511]
[1754710758232,0.79755844,116570.0,116560.0,0.32532511]
[1754710758675,0.63431879,116570.0,116560.0,0.32532511]
[1754710758898,0.20228668,116570.0,116560.0,0.81506426]
[1754710759114,0.20228668,116570.0,116560.0,0.81626426]
[1754710759324,0.33216668,116570.0,116560.0,0.81626426]
[1754710762528,0.13688,116570.0,116560.0,0.81626426]
[1754710762744,0.13688,116570.0,116560.0,0.91156275]
[1754710764210,0.13688,116570.0,116560.0,0.91036275]
[1754710765873,0.30845073,116570.0,116560.0,0.91036275]
[1754710767228,0.30445073,116570.0,116560.0,0.91036275]
[1754710767377,0.30145073,116570.0,116560.0,0.91036275]
[1754710767585,0.30345073,116570.0,116560.0,0.91036275]
[1754710767789,0.30345073,116570.0,116560.0,0.26555109]
[1754710767986,0.30345073,116570.0,116560.0,0.49691055]
[1754710768341,0.30557073,116570.0,116560.0,0.32532511]
[1754710768517,0.30757073,116570.0,116560.0,0.32532511]
[1754710772555,0.30757073,116570.0,116560.0,0.32340511]
[1754710778480,0.30757073,116570.0,116560.0,0.49499055]
[1754710778694,0.30757073,116570.0,116560.0,0.57022861]
[1754710779396,0.30757073,116570.0,116560.0,0.2520749]
[1754710779594,0.30757073,116570.0,116560.0,0.57022861]
[1754710787383,0.30757073,116570.0,116560.0,0.6474793]
[1754710796335,0.30757073,116570.0,116560.0,0.96755301]
[1754710796557,0.30245073,116570.0,116560.0,0.96755301]
[1754710798970,0.30569073,116570.0,116560.0,0.96755301]
[1754710803277,0.30569073,116570.0,116560.0,0.6493993]
[1754710804422,0.30776073,116570.0,116560.0,0.6493993]
[1754710808418,0.30776073,116570.0,116560.0,0.96755301]
[1754710808934,0.30776073,116570.0,116560.0,0.6493993]
[1754710812845,0.30776073,116570.0,116560.0,0.33124559]
[1754710813041,0.30776073,116570.0,116560.0,0.6493993]
[1754710818048,0.30776073,116570.0,116560.0,0.33124559]
[1754710818285,0.30776073,116570.0,116560.0,0.6493993]
[1754710819485,0.30776073,116570.0,116560.0,0.33124559]
[1754710819708,0.30776073,116570.0,116560.0,0.6493993]
[1754710827886,0.30776073,116570.0,116560.0,0.33124559]
[1754710828087,0.30776073,116570.0,116560.0,0.6493993]
[1754710835388,0.30776073,116570.0,116560.0,0.33124559]
[1754710835754,0.30776073,116570.0,116560.0,0.6493993]
[1754710838863,0.30776073,116570.0,116560.0,0.33124559]
[1754710839076,0.30776073,116570.0,116560.0,0.6493993]
[1754710841458,0.30776073,116570.0,116560.0,0.33124559]
[1754710841690,0.30776073,116570.0,116560.0,0.4006558]
[1754710842351,0.17788073,116570.0,116560.0,0.4006558]
[1754710842576,0.30772073,116570.0,116560.0,0.4006558]
[1754710850574,0.30772073,116570.0,116560.0,0.57224124]
[1754710853445,0.30772073,116570.0,116560.0,0.25408753]
[1754710853675,0.30772073,116570.0,116560.0,0.57224124]
[1754710854429,0.30772073,116570.0,116560.0,0.48669345]
[1754710857369,0.30772073,116570.0,116560.0,0.65827889]
[1754710863594,0.30772073,116570.0,116560.0,0.48669345]
[1754710865477,0.30772073,116570.0,116560.0,0.4006558]
[1754710870100,0.30772073,116570.0,116560.0,0.57224124]
[1754710870316,0.30772073,116570.0,116560.0,0.57416124]
[1754710885649,0.30772073,116570.0,116560.0,0.25600753]
[1754710885851,0.30772073,116570.0,116560.0,0.57416124]
[1754710887602,0.30722073,116570.0,116560.0,0.66039089]
[1754710889328,0.30722073,116570.0,116560.0,0.34223718]
[1754710889529,0.30722073,116570.0,116560.0,0.65847089]
[1754710894609,0.30722073,116570.0,116560.0,0.34031718]
[1754710894840,0.30722073,116570.0,116560.0,0.65847089]
[1754710902122,0.30722073,116570.0,116560.0,0.48688545]
[1754710902882,0.30722073,116570.0,116560.0,0.16873174]
[1754710903083,0.30722073,116570.0,116560.0,0.4006558]
[1754710903817,0.30622073,116570.0,116560.0,0.4006558]
[1754710905026,0.30622073,116570.0,116560.0,0.57224124]
[1754710907097,0.30622073,116570.0,116560.0,0.57416124]
[1754710908106,0.13615,116570.0,116560.0,0.57416124]
[1754710908310,0.13615,116570.0,116560.0,0.66039089]
[1754710909410,0.13611,116570.0,116560.0,0.66039089]
[1754710911243,0.13611,116570.0,116560.0,0.34223718]
[1754710911455,0.13611,116570.0,116560.0,0.66039089]
[1754710913077,0.13611,116570.0,116560.0,0.34223718]
[1754710913258,0.13611,116570.0,116560.0,0.66039089]
[1754710913462,0.78217417,116570.0,116560.0,0.08250209]
[1754710913662,1.49080687,116570.0,116560.0,0.0052514]
[1754710913884,1.49080726,116570.0,116560.0,0.0052514]
[1754710914213,1.4827569,116570.0,116560.0,0.0052514]
[1754710914429,1.5085359,116570.0,116560.0,0.0052514]
[1754710914654,1.59433015,116570.0,116560.0,0.0052514]
[1754710914863,1.59733015,116570.0,116560.0,0.0052514]
[1754710915065,1.59533015,116570.0,116560.0,0.0052514]
[1754710915471,1.59833015,116570.0,116560.0,0.0052514]
[1754710915906,0.18020807,116540.0,116520.0,0.07717602]
[1754710916147,0.17165908,116510.0,116500.0,0.01218177]
[1754710916338,0.30425908,116510.0,116500.0,0.01410177]
[1754710916753,0.64819879,116510.0,116500.0,0.01410177]
[1754710917653,0.64819879,116510.0,116500.0,0.01414913]
[1754710917868,0.64819879,116510.0,116480.0,0.55218869]
[1754710917869,0.51168855,116490.0,116480.0,0.02]
[1754710918084,1.23682808,116490.0,116480.0,0.02]
[1754710918319,0.91867437,116490.0,116480.0,0.02]
[1754710918542,1.23990808,116490.0,116480.0,0.02]
[1754710918771,1.27009639,116490.0,116480.0,0.02]
[1754710919636,1.27209639,116490.0,116480.0,0.02]
[1754710920255,1.40661639,116490.0,116480.0,0.02]
[1754710922096,1.06661639,116490.0,116480.0,0.02]
[1754710923147,0.26560066,116490.0,116480.0,0.02192]
[1754710923405,0.002,116490.0,116480.0,0.19362329]
[1754710923787,0.137,116490.0,116480.0,0.19482329]
[1754710924240,0.135,116490.0,116480.0,0.19482329]
[1754710924442,0.135,116490.0,116480.0,0.26640334]
[1754710924657,0.135,116490.0,116480.0,0.26520334]
[1754710924863,0.135,116490.0,116480.0,0.27020334]
[1754710925440,0.49357416,116500.0,116490.0,0.17168855]
[1754710925731,0.62869416,116500.0,116490.0,0.17360855]
[1754710926210,0.30987381,116500.0,116490.0,0.17360855]
[1754710926767,0.33566381,116500.0,116490.0,0.17360855]
[1754710927551,0.33566381,116500.0,116490.0,0.17460855]
[1754710928512,0.02887,116500.0,116490.0,0.17460855]
[1754710928732,0.16079,116500.0,116490.0,0.53265422]
[1754710928951,0.02579,116500.0,116490.0,0.54242256]
[1754710929166,0.16079,116500.0,116490.0,0.22360221]
[1754710929382,0.16079,116500.0,116490.0,0.54242256]
[1754710931316,0.16079,116500.0,116490.0,0.54122256]
[1754710934080,0.16079,116500.0,116490.0,0.22240221]
[1754710934285,0.16079,116500.0,116490.0,0.54122256]
[1754710935333,0.02579,116500.0,116490.0,0.54122256]
[1754710935548,0.13488736,116510.0,116500.0,0.17167381]
[1754710935763,0.13488736,116510.0,116500.0,0.49241416]
[1754710936000,0.16067336,116510.0,116500.0,0.53194176]
[1754710936634,0.16067336,116510.0,116500.0,0.21312141]
[1754710936848,0.16367336,116510.0,116500.0,0.21312141]
[1754710937268,0.16067336,116510.0,116500.0,0.21812141]
[1754710937726,0.16067336,116510.0,116500.0,0.22112141]
[1754710938323,0.02583336,116510.0,116500.0,0.53994176]
[1754710938571,0.02583336,116510.0,116500.0,0.54114176]
[1754710938572,0.13492736,116510.0,116500.0,0.54114176]
[1754710939025,4.736e-05,116510.0,116500.0,0.54114176]
[1754710939237,4.736e-05,116510.0,116500.0,0.30918352]
[1754710939454,4.736e-05,116510.0,116500.0,0.62800387]
[1754710940083,4.736e-05,116510.0,116500.0,0.30918352]
[1754710940286,4.736e-05,116510.0,116500.0,0.62800387]
[1754710940713,4.736e-05,116510.0,116500.0,0.30918352]
[1754710940922,4.736e-05,116510.0,116500.0,0.62800387]
[1754710942840,4.736e-05,116510.0,116500.0,0.30918352]
[1754710943055,4.736e-05,116510.0,116500.0,0.62800387]
[1754710943278,4.736e-05,116510.0,116500.0,0.57378352]
[1754710943498,4.736e-05,116510.0,116500.0,0.89260387]
[1754710944787,4.736e-05,116510.0,116500.0,1.21262422]
[1754710944992,4.736e-05,116510.0,116500.0,0.89380387]
[1754710945199,4.736e-05,116510.0,116500.0,1.28682422]
[1754710945415,4.736e-05,116510.0,116500.0,2.11267122]
[1754710946304,4.736e-05,116510.0,116500.0,2.10967122]
[1754710946751,4.736e-05,116510.0,116500.0,2.11367122]
[1754710946957,4.736e-05,116510.0,116500.0,1.84287122]
[1754710947163,4.736e-05,116510.0,116500.0,1.06144652]
[1754710947366,4.736e-05,116510.0,116500.0,1.50831022]
[1754710947602,4.736e-05,116510.0,116500.0,1.51431022]
[1754710947804,0.06947762,116530.0,116520.0,0.17164435]
[1754710948019,0.06947762,116530.0,116520.0,1.06159961]
[1754710948224,0.07262762,116530.0,116520.0,0.92711961]
[1754710948787,0.07470762,116530.0,116520.0,0.92519961]
[1754710949008,0.07470762,116530.0,116520.0,0.92719961]
[1754710949438,0.24633724,116530.0,116520.0,0.32082035]
[1754710949617,0.38069724,116530.0,116520.0,0.32082035]
[1754710950293,0.38069724,116530.0,116520.0,0.4964647]
[1754710952809,0.38069724,116530.0,116520.0,0.17764435]
[1754710953178,0.38069724,116530.0,116520.0,0.4964647]
[1754710953374,0.38069724,116530.0,116520.0,0.17764435]
[1754710953675,0.38069724,116530.0,116520.0,0.4964647]
[1754710954400,0.31121962,116530.0,116520.0,0.56474247]
[1754710956504,0.31121962,116530.0,116520.0,0.17764435]
[1754710957115,0.31121962,116530.0,116520.0,0.4964647]
[1754710957323,0.00523,116530.0,116520.0,0.81528505]
[1754710958699,0.00523,116530.0,116520.0,0.81623769]
[1754710959747,0.00315,116530.0,116520.0,0.18051699]
[1754710959989,0.00315,116530.0,116520.0,0.8668021]
[1754710960406,4.742e-05,116540.0,116530.0,0.17162962]
[1754710960622,4.742e-05,116540.0,116530.0,0.49236997]
[1754710960821,4.742e-05,116540.0,116530.0,0.62624997]
[1754710961017,4.742e-05,116540.0,116530.0,0.62744997]
[1754710961241,4.742e-05,116540.0,116530.0,0.77347304]
[1754710961886,4.742e-05,116540.0,116530.0,1.09229339]
[1754710962527,4.742e-05,116540.0,116530.0,1.09429339]
[1754710962748,4.742e-05,116540.0,116530.0,0.77547304]
[1754710962987,4.742e-05,116540.0,116530.0,0.77747304]
[1754710963791,4.742e-05,116540.0,116530.0,0.77842568]
[1754710964000,4.742e-05,116540.0,116530.0,1.04422568]
[1754710964198,4.742e-05,116540.0,116530.0,1.04302568]
[1754710964606,4.742e-05,116540.0,116530.0,1.04102568]
[1754710965297,4.742e-05,116540.0,116530.0,1.03902568]
[1754710965780,4.742e-05,116540.0,116530.0,1.04102568]
[1754710966017,4.742e-05,116540.0,116530.0,1.03902568]
[1754710966227,4.742e-05,116540.0,116530.0,1.04202568]
[1754710966407,4.742e-05,116540.0,116530.0,1.04402568]
[1754710969248,0.07262762,116550.0,116540.0,0.17252011]
[1754710969452,0.07470762,116550.0,116540.0,0.67418487]
[1754710970317,0.07470762,116550.0,116540.0,0.67518487]
[1754710970708,0.07470762,116550.0,116540.0,0.67618487]
[1754710973818,0.07470762,116550.0,116540.0,0.35736452]
[1754710974029,0.07470762,116550.0,116540.0,0.67618487]
[1754710974852,0.07470762,116550.0,116540.0,0.35736452]
[1754710975052,0.07470762,116550.0,116540.0,0.67618487]
[1754710975278,0.0738024,116550.0,116540.0,0.54107965]
[1754710976032,0.0738024,116550.0,116540.0,0.2222593]
[1754710976227,0.0738024,116550.0,116540.0,0.54107965]
[1754710977654,0.00432478,116550.0,116540.0,0.54107965]
[1754710978675,0.00432478,116550.0,116540.0,0.2222593]
[1754710979187,0.00432478,116550.0,116540.0,0.54107965]
[1754710981137,0.00432478,116550.0,116540.0,0.2222593]
[1754710981338,0.00432478,116550.0,116540.0,0.54107965]
[1754710983640,0.00432478,116550.0,116540.0,0.67495965]
[1754710984712,0.00432478,116550.0,116540.0,0.67706965]
[1754710985150,0.00432478,116550.0,116540.0,0.67495965]
[1754710986291,0.00432478,116550.0,116540.0,0.67706965]
[1754710986673,0.00432478,116550.0,116540.0,0.3582493]
[1754710986874,0.00432478,116550.0,116540.0,0.67706965]
[1754710988112,0.00432478,116550.0,116540.0,0.3582493]
[1754710988325,0.00432478,116550.0,116540.0,0.67706965]
[1754710989552,0.00432478,116550.0,116540.0,0.54318965]
[1754710989772,0.00382478,116550.0,116540.0,0.54318965]
[1754710991533,0.00382478,116550.0,116540.0,0.67678965]
[1754710993631,0.00382478,116550.0,116540.0,0.54318965]
[1754710994462,0.37838257,116550.0,116540.0,0.36946476]
[1754710994694,0.37838257,116550.0,116540.0,0.002]
[1754710994893,0.37838257,116550.0,116540.0,0.32082035]
[1754710996038,0.37838257,116550.0,116540.0,0.002]
[1754710997784,0.30890495,116550.0,116540.0,0.002]
[1754711001152,0.30848957,116550.0,116540.0,0.002]
[1754711028779,0.30848957,116550.0,116540.0,0.32036788]
[1754711037845,0.30848957,116550.0,116540.0,0.30336788]
[1754711043187,0.30848957,116550.0,116540.0,0.31836788]
[1754711046288,0.17161489,116540.0,116530.0,0.17162481]
[1754711046491,0.17161489,116540.0,116530.0,0.17376481]
[1754711047426,0.17161489,116540.0,116530.0,0.49213269]
[1754711047636,0.17161489,116540.0,116530.0,0.49413269]
[1754711047833,0.17161489,116540.0,116530.0,0.49613269]
[1754711048447,0.17161489,116540.0,116530.0,0.17776481]
[1754711048661,0.17161489,116540.0,116530.0,0.49613269]
[1754711051728,0.17161489,116540.0,116530.0,0.58292694]
[1754711057645,0.37588719,116550.0,116530.0,0.58292694]
[1754711057856,0.37588719,116550.0,116540.0,0.31836788]
[1754711058053,0.37796719,116550.0,116540.0,0.31836788]
[1754711058830,0.37796719,116550.0,116540.0,0.31936788]
[1754711059475,0.37796719,116550.0,116540.0,0.32036788]
[1754711061737,0.37796719,116550.0,116540.0,0.49198277]
[1754711062554,0.37796719,116550.0,116540.0,0.17361489]
[1754711062764,0.37796719,116550.0,116540.0,0.49198277]
[1754711065890,0.20636702,116550.0,116540.0,0.49198277]
[1754711067071,0.20636702,116550.0,116540.0,0.17361489]
[1754711067257,0.20636702,116550.0,116540.0,0.49198277]
[1754711070874,0.20636702,116550.0,116540.0,0.49393277]
[1754711072294,0.23214602,116550.0,116540.0,0.49393277]
[1754711073289,0.1626684,116550.0,116540.0,0.81230065]
[1754711073713,0.1626684,116550.0,116540.0,0.49393277]
[1754711074120,0.1626684,116550.0,116540.0,0.81230065]
[1754711076044,0.1626684,116550.0,116540.0,0.49393277]
[1754711078387,0.1626684,116550.0,116540.0,0.17556489]
[1754711078584,0.1626684,116550.0,116540.0,0.49393277]
[1754711079002,0.1626684,116550.0,116540.0,0.81230065]
[1754711081883,0.1626684,116550.0,116540.0,0.17556489]
[1754711082180,0.1626684,116550.0,116540.0,0.49393277]
[1754711084038,0.1626684,116550.0,116540.0,0.17556489]
[1754711084249,0.1626684,116550.0,116540.0,0.49393277]
[1754711089401,0.1626684,116550.0,116540.0,0.17556489]
[1754711089604,0.1626684,116550.0,116540.0,0.49393277]
[1754711101140,0.33426857,116550.0,116540.0,0.49393277]
[1754711101937,0.1626684,116550.0,116540.0,0.49393277]
[1754711104008,0.1626684,116550.0,116540.0,0.81230065]
[1754711104974,0.1626684,116550.0,116540.0,0.49393277]
[1754711105095,0.1626684,116550.0,116540.0,0.81230065]
[1754711107830,0.1608284,116550.0,116540.0,0.81230065]
[1754711108275,0.1608284,116550.0,116540.0,0.17556489]
[1754711108512,0.1608284,116550.0,116540.0,0.81230065]
[1754711110882,0.1608284,116550.0,116540.0,0.49393277]
[1754711111905,0.157419,116550.0,116540.0,0.81230065]
[1754711112112,0.13164,116550.0,116540.0,0.9020849]
[1754711112528,0.157337,116560.0,116550.0,0.17160017]
[1754711112741,0.13156,116560.0,116550.0,0.81346593]
[1754711112941,0.13156,116560.0,116550.0,0.49509805]
[1754711113469,0.13156,116560.0,116550.0,0.50365645]
[1754711114116,0.13656,116560.0,116550.0,0.50365645]
[1754711114382,0.13656,116560.0,116550.0,0.27208282]
[1754711114539,0.13656,116560.0,116550.0,0.50365645]
[1754711115594,0.13656,116560.0,116550.0,0.18528857]
[1754711115736,0.13656,116560.0,116550.0,0.50066645]
[1754711116388,0.13656,116560.0,116550.0,0.50365645]
[1754711116590,0.13656,116560.0,116550.0,0.5904507]
[1754711122921,0.005,116560.0,116550.0,0.90881858]
[1754711123192,0.1366,116560.0,116550.0,0.90881858]
[1754711124080,0.1366,116560.0,116550.0,0.5874607]
[1754711130794,0.005,116560.0,116550.0,0.81903433]
[1754711131024,0.13652,116560.0,116550.0,0.82201433]
[1754711134171,0.005,116560.0,116550.0,0.82201433]
[1754711134588,0.13652,116560.0,116550.0,0.82201433]
[1754711134798,0.005,116560.0,116550.0,0.82201433]
[1754711135105,0.13652,116560.0,116550.0,0.90880858]
[1754711135320,0.005,116560.0,116550.0,0.90880858]
[1754711135761,0.13648,116560.0,116550.0,0.90880858]
[1754711136698,0.005,116560.0,116550.0,0.90582858]
[1754711136961,0.13644,116560.0,116550.0,0.90582858]
[1754711137178,0.005,116560.0,116550.0,0.90582858]
[1754711137664,0.13648,116560.0,116550.0,0.90582858]
[1754711141400,0.13636,116560.0,116550.0,0.90582858]
[1754711142435,0.005,116560.0,116550.0,0.90582858]
[1754711142594,0.13636,116560.0,116550.0,0.90582858]
[1754711143141,0.005,116560.0,116550.0,0.90582858]
[1754711143571,0.13632,116560.0,116550.0,0.26909282]
[1754711143765,0.13632,116560.0,116550.0,0.90582858]
[1754711144176,0.005,116560.0,116550.0,0.90582858]
[1754711144385,0.13632,116560.0,116550.0,0.90582858]
[1754711144588,0.005,116560.0,116550.0,0.90582858]
[1754711144996,0.13632,116560.0,116550.0,0.90582858]
[1754711145228,0.13432,116560.0,116550.0,0.90582858]
[1754711145669,0.13432,116560.0,116550.0,0.90782858]
[1754711145877,0.13132,116560.0,116550.0,0.90782858]
[1754711146085,0.13132,116560.0,116550.0,0.90982858]
[1754711147246,0.13132,116560.0,116550.0,0.27309282]
[1754711147459,0.13444,116560.0,116550.0,0.5914607]
[1754711147673,0.13649,116560.0,116550.0,0.5914607]
[1754711147882,0.13649,116560.0,116550.0,0.50466645]
[1754711148083,0.13649,116560.0,116550.0,0.50252645]
[1754711153239,0.13649,116560.0,116550.0,0.18415857]
[1754711153446,0.13649,116560.0,116550.0,0.50252645]
[1754711154676,0.13649,116560.0,116550.0,0.18415857]
[1754711154876,0.30807544,116560.0,116550.0,0.49396805]
[1754711155329,0.13649,116560.0,116550.0,0.49396805]
[1754711156123,0.13649,116560.0,116550.0,0.50243584]
[1754711160296,0.13649,116560.0,116550.0,0.17560017]
[1754711160505,0.13649,116560.0,116550.0,0.49396805]
[1754711161509,0.75363701,116560.0,116550.0,0.004]
[1754711161716,0.77108603,116560.0,116550.0,0.004]
[1754711162356,0.79686503,116560.0,116550.0,0.004]
[1754711162770,0.79686503,116560.0,116550.0,0.002]
[1754711163216,0.79986503,116560.0,116550.0,0.002]
[1754711163417,0.17160017,116550.0,116540.0,0.17161433]
[1754711163627,0.17666017,116550.0,116540.0,0.48998221]
[1754711164083,0.20243917,116550.0,116540.0,0.48998221]
[1754711164713,0.20243917,116550.0,116540.0,0.49098221]
[1754711165722,0.20243917,116550.0,116540.0,0.49198221]
[1754711166088,0.6076013,116550.0,116540.0,0.002]
[1754711167728,0.61637722,116550.0,116540.0,0.002]
[1754711173564,0.29800934,116550.0,116540.0,0.002]
[1754711174997,0.55121509,116550.0,116540.0,0.002]
[1754711175195,0.86958297,116550.0,116540.0,0.002]
[1754711182040,0.54243917,116550.0,116540.0,0.002]
[1754711182250,0.54243917,116550.0,116540.0,0.32036788]
[1754711183431,0.54243917,116550.0,116540.0,0.002]
[1754711183640,0.55089011,116550.0,116540.0,0.002]
[1754711184727,0.5802368,116550.0,116540.0,0.002]
[1754711185446,0.54243917,116550.0,116540.0,0.32036788]
[1754711186472,0.54243917,116550.0,116540.0,0.002]
[1754711186685,0.54243917,116550.0,116540.0,0.32036788]
[1754711188086,0.54243917,116550.0,116540.0,0.002]
[1754711188514,0.54243917,116550.0,116540.0,0.32036788]
[1754711190774,0.54243917,116550.0,116540.0,0.002]
[1754711191217,0.88253579,116550.0,116540.0,0.002]
[1754711193268,1.01405579,116550.0,116540.0,0.002]
[1754711195041,0.69568791,116550.0,116540.0,0.002]
[1754711200362,1.01405579,116550.0,116540.0,0.002]
[1754711202051,0.69568791,116550.0,116540.0,0.002]
[1754711204356,0.78255002,116550.0,116540.0,0.002]
[1754711209809,0.76082128,116550.0,116540.0,0.002]
[1754711210236,0.76082128,116550.0,116540.0,0.32036788]
[1754711215636,0.76082128,116550.0,116540.0,0.002]
[1754711215884,0.76082128,116550.0,116540.0,0.32036788]
[1754711219694,0.76082128,116550.0,116540.0,0.002]
[1754711219898,0.76082128,116550.0,116540.0,0.32036788]
[1754711220119,0.84761553,116550.0,116540.0,0.002]
[1754711230156,1.16598341,116550.0,116540.0,0.002]
[1754711232043,1.18343243,116550.0,116540.0,0.002]
[1754711232427,0.86506455,116550.0,116540.0,0.002]
[1754711232630,1.18343243,116550.0,116540.0,0.002]
[1754711237182,1.18343243,116550.0,116540.0,0.001]
[1754711237563,1.18543243,116550.0,116540.0,0.001]
[1754711239120,0.17161489,116540.0,116520.0,0.18897307]
[1754711239332,0.17479489,116540.0,116530.0,0.31836788]
[1754711239543,0.30807489,116540.0,116530.0,0.31836788]
[1754711239761,0.34127923,116540.0,116530.0,0.31836788]
[1754711240353,0.36706023,116540.0,116530.0,0.31836788]
[1754711241091,0.36706023,116540.0,116530.0,0.31936788]
[1754711245159,0.36706023,116540.0,116530.0,0.32036788]
[1754711245365,0.33385589,116540.0,116530.0,0.4919975]
[1754711245567,0.33385589,116540.0,116530.0,0.4940875]
[1754711245897,0.33385589,116540.0,116530.0,0.17571962]
[1754711246097,0.33385589,116540.0,116530.0,0.4940875]
[1754711252417,0.33385589,116540.0,116530.0,0.17571962]
[1754711252624,0.33385589,116540.0,116530.0,0.4940875]
[1754711254085,0.42065014,116540.0,116530.0,0.4940875]
[1754711254497,0.33385589,116540.0,116530.0,0.4940875]
[1754711258996,0.33385589,116540.0,116530.0,0.32245788]
[1754711261659,0.33385589,116540.0,116530.0,0.32036788]
[1754711267269,0.33385589,116540.0,116530.0,0.4919975]
[1754711269837,0.33385589,116540.0,116530.0,0.17362962]
[1754711270133,0.33385589,116540.0,116530.0,0.4919975]
[1754711271123,0.33385589,116540.0,116530.0,0.17362962]
[1754711271339,0.33385589,116540.0,116530.0,0.4919975]
[1754711271537,0.33385589,116540.0,116530.0,0.32036788]
[1754711271957,0.36064269,116540.0,116530.0,0.32036788]
[1754711272240,0.36064269,116540.0,116530.0,0.4919975]
[1754711279940,0.36064269,116540.0,116530.0,0.002]
[1754711280256,0.36064269,116540.0,116530.0,0.32036788]
[1754711280466,0.36064269,116540.0,116530.0,0.002]
[1754711280685,0.36064269,116540.0,116530.0,0.32036788]
[1754711281779,1.1233217,116540.0,116530.0,0.002]
[1754711282692,0.80495382,116540.0,116530.0,0.001]
[1754711282937,0.18907864,116530.0,116520.0,0.17176597]
[1754711283083,0.36637977,116530.0,116520.0,0.49013385]
[1754711283756,0.39216377,116530.0,116520.0,0.49013385]
[1754711284323,0.39216377,116530.0,116520.0,0.31848957]
[1754711285006,0.39216377,116530.0,116520.0,0.49013392]
[1754711285344,0.30670475,116530.0,116520.0,0.49013392]
[1754711285599,0.30670475,116530.0,116520.0,0.49329392]
[1754711286007,0.30670475,116530.0,116520.0,0.49429392]
[1754711289191,0.30670475,116530.0,116520.0,0.32048957]
[1754711290563,0.30670475,116530.0,116520.0,0.00212169]
[1754711290772,0.393499,116530.0,116520.0,0.00212169]
[1754711291582,0.71186688,116530.0,116520.0,0.00212169]
[1754711291798,0.393499,116530.0,116520.0,0.00212169]
[1754711293275,0.30670475,116530.0,116520.0,0.32048957]
[1754711294844,0.30670475,116530.0,116520.0,0.00212169]
[1754711295153,0.30670475,116530.0,116520.0,0.32048957]
[1754711306595,0.30670475,116530.0,116520.0,0.00212169]
[1754711306835,0.30670475,116530.0,116520.0,0.32048957]
[1754711307085,0.32588415,116530.0,116520.0,0.32048957]
[1754711307765,0.32588415,116530.0,116520.0,0.00212169]
[1754711308010,0.32588415,116530.0,116520.0,0.32048957]
[1754711319644,0.32588415,116530.0,116520.0,0.00212169]
[1754711319858,0.32588415,116530.0,116520.0,0.32048957]
[1754711323291,0.66588415,116530.0,116520.0,0.00212169]
[1754711324389,0.98425203,116530.0,116520.0,0.00212169]
[1754711329351,0.96507263,116530.0,116520.0,0.00212169]
[1754711330793,1.35291813,116530.0,116520.0,0.00212169]
[1754711330993,1.03455025,116530.0,116520.0,0.00212169]
[1754711331375,1.16575025,116530.0,116520.0,0.00212169]
[1754711338765,0.84738237,116530.0,116520.0,0.00212169]
[1754711338964,1.2525445,116530.0,116520.0,0.00212169]
[1754711341694,0.93417662,116530.0,116520.0,0.00212169]
[1754711341893,1.18306688,116530.0,116520.0,0.00212169]
[1754711343714,0.864699,116530.0,116520.0,0.00212169]
[1754711343915,1.18306688,116530.0,116520.0,0.00212169]
[1754711360671,0.864699,116530.0,116520.0,0.00212169]
[1754711360875,1.18306688,116530.0,116520.0,0.00212169]
[1754711365783,1.19112161,116530.0,116520.0,0.00212169]
[1754711368202,1.19112161,116530.0,116520.0,0.00112169]
[1754711368700,1.19412161,116530.0,116520.0,0.00112169]
[1754711369038,1.19412161,116530.0,116520.0,0.00012169]
[1754711369446,1.19612144,116530.0,116520.0,0.00012169]
[1754711370465,0.87775356,116530.0,116520.0,0.00012169]
[1754711370679,0.869699,116530.0,116520.0,0.00012169]
[1754711371087,1.18806688,116530.0,116520.0,0.00012169]
[1754711374798,0.735509,116530.0,116520.0,0.00222169]
[1754711375021,0.864639,116530.0,116520.0,0.00222169]
[1754711375186,1.18300688,116530.0,116520.0,0.00222169]
[1754711377162,1.18612688,116530.0,116520.0,0.00222169]
[1754711377446,0.869809,116530.0,116520.0,0.00222169]
[1754711377606,1.18817688,116530.0,116520.0,0.00222169]
[1754711382712,0.738689,116530.0,116520.0,0.00222169]
[1754711382919,0.77784475,116530.0,116520.0,0.32058957]
[1754711383122,0.77784475,116530.0,116520.0,0.17679604]
[1754711383511,1.09621263,116530.0,116520.0,0.17679604]
[1754711383716,1.09621263,116530.0,116520.0,0.17386604]
[1754711383914,0.64672475,116530.0,116520.0,0.49223392]
[1754711384115,0.45764611,116530.0,116520.0,0.49516392]
[1754711384313,0.501904,116530.0,116520.0,0.49516392]
[1754711385509,0.161904,116530.0,116520.0,0.49516392]
[1754711387433,0.33353362,116530.0,116520.0,0.49516392]
[1754711388179,0.161904,116530.0,116520.0,0.49516392]
[1754711391016,0.33353362,116530.0,116520.0,0.49516392]
[1754711391705,0.33353362,116530.0,116520.0,0.49223392]
[1754711392372,0.33353362,116530.0,116520.0,0.17386604]
[1754711395476,0.6570615,116530.0,116520.0,0.00222169]
[1754711396125,0.6570615,116530.0,116520.0,0.00012169]
[1754711396331,0.74385575,116530.0,116520.0,0.00012169]
[1754711396503,0.83071786,116530.0,116520.0,0.00012169]
[1754711396658,0.84816688,116530.0,116520.0,0.00012169]
[1754711396860,0.529799,116530.0,116520.0,0.00012169]
[1754711397078,0.84816688,116530.0,116520.0,0.00012169]
[1754711406349,1.18816688,116530.0,116520.0,0.00012169]
[1754711411803,0.869799,116530.0,116520.0,0.00012169]
[1754711412009,1.18816688,116530.0,116520.0,0.00012169]
[1754711412525,0.869799,116530.0,116520.0,0.00012169]
[1754711412895,1.10137263,116530.0,116520.0,0.00012169]
[1754711414123,0.78300475,116530.0,116520.0,0.00012169]
[1754711414323,1.10137263,116530.0,116520.0,0.00012169]
[1754711423750,1.41974051,116530.0,116520.0,0.00012169]
[1754711424370,1.10137263,116530.0,116520.0,0.00012169]
[1754711424574,1.18816688,116530.0,116520.0,0.00012169]
[1754711435227,0.869799,116530.0,116520.0,0.00012169]